bitfinex-derivatives/quotes_BTCF0:USTF0_20250514
["timestamp","ask_amount","ask_price","bid_price","bid_amount"]
[1747238760992,0.15784991,103620.0,103610.0,0.90027571]
[1747238761577,0.15784991,103620.0,103610.0,0.71521362]
[1747238761786,0.15784991,103620.0,103610.0,1.34204801]
[1747238761988,0.35083381,103620.0,103610.0,0.90988801]
[1747238762190,0.38193381,103620.0,103610.0,0.94054592]
[1747238762395,0.44423381,103620.0,103610.0,0.94054592]
[1747238763186,0.1044482,103620.0,103610.0,1.12560801]
[1747238763588,0.1044482,103620.0,103610.0,0.90988801]
[1747238763885,0.1044482,103620.0,103610.0,1.12560801]
[1747238764301,0.2974321,103620.0,103610.0,1.12560801]
[1747238764895,0.1044482,103620.0,103610.0,1.12560801]
[1747238765493,0.2974321,103620.0,103610.0,1.12560801]
[1747238766292,0.2668321,103620.0,103610.0,1.12560801]
[1747238766493,0.81269419,103620.0,103610.0,0.35441362]
[1747238766798,0.84269419,103620.0,103610.0,0.2260025]
[1747238767786,0.84269419,103620.0,103610.0,0.1930025]
[1747238767986,0.1930212,103600.0,103590.0,0.43857039]
[1747238768186,0.73888329,103600.0,103590.0,0.46887039]
[1747238768387,0.2561212,103600.0,103590.0,0.56538151]
[1747238768587,0.2861212,103600.0,103590.0,0.59778151]
[1747238768894,0.6469212,103600.0,103590.0,0.51712401]
[1747238769287,0.6469212,103600.0,103590.0,0.51912401]
[1747238769489,0.83198329,103600.0,103590.0,0.51912401]
[1747238769686,0.6469212,103600.0,103590.0,0.51912401]
[1747238769893,0.6469212,103600.0,103590.0,0.37402832]
[1747238770297,0.6469212,103600.0,103590.0,0.32577252]
[1747238770596,0.6469212,103600.0,103590.0,0.0059306]
[1747238770597,1.04966329,103600.0,103590.0,0.0059306]
[1747238770988,1.04966329,103600.0,103590.0,0.1989704]
[1747238771403,0.8646012,103600.0,103590.0,0.2298704]
[1747238771698,0.6469212,103600.0,103590.0,0.2592704]
[1747238771902,0.6469212,103600.0,103590.0,0.2572704]
[1747238771903,0.8647612,103600.0,103590.0,0.2572704]
[1747238774899,0.5039612,103600.0,103590.0,0.2572704]
[1747238775200,0.8647612,103600.0,103590.0,0.2572704]
[1747238775690,0.6469212,103600.0,103590.0,0.2572704]
[1747238775887,0.2561212,103600.0,103590.0,0.71460015]
[1747238776086,0.0631,103600.0,103590.0,0.92996224]
[1747238776292,0.2721657,103610.0,103600.0,0.1930212]
[1747238776495,0.3378657,103610.0,103600.0,0.2554212]
[1747238776992,0.3378657,103610.0,103600.0,0.35194163]
[1747238778398,0.88372779,103610.0,103600.0,0.09652043]
[1747238778700,0.1930212,103600.0,103590.0,0.4032275]
[1747238778899,0.2570212,103600.0,103590.0,0.4032275]
[1747238779105,0.2570212,103600.0,103590.0,0.49974793]
[1747238779502,0.2255212,103600.0,103590.0,0.49974793]
[1747238779796,0.0325,103600.0,103590.0,1.04561002]
[1747238780003,0.3054718,103610.0,103600.0,0.1930212]
[1747238780189,0.065,103610.0,103600.0,0.47238329]
[1747238780498,0.2580025,103610.0,103600.0,1.05058329]
[1747238780703,0.2580025,103610.0,103600.0,0.96205095]
[1747238781711,0.2886025,103610.0,103600.0,0.74465095]
[1747238782299,0.47366459,103610.0,103600.0,0.35265095]
[1747238782495,0.47366459,103610.0,103600.0,0.2243212]
[1747238783297,0.83446459,103610.0,103600.0,0.2243212]
[1747238783499,0.83446459,103610.0,103600.0,0.1930212]
[1747238784002,0.6494025,103610.0,103600.0,0.1930212]
[1747238784199,0.83446459,103610.0,103600.0,0.1930212]
[1747238785006,0.83446459,103610.0,103600.0,0.2262212]
[1747238785194,0.1930212,103600.0,103590.0,0.6908157]
[1747238785395,0.43928329,103600.0,103590.0,0.9414157]
[1747238785591,0.43928329,103600.0,103590.0,0.7240157]
[1747238785802,0.43928329,103600.0,103590.0,0.3068157]
[1747238786296,1.01852329,103600.0,103590.0,0.0039306]
[1747238787191,1.01852329,103600.0,103590.0,0.1969704]
[1747238787403,1.01852329,103600.0,103590.0,0.2294704]
[1747238788004,1.01852329,103600.0,103590.0,0.2254704]
[1747238791922,1.01852329,103600.0,103590.0,0.2565704]
[1747238792906,0.4717412,103600.0,103590.0,0.2565704]
[1747238793104,0.2542212,103600.0,103590.0,0.38350015]
[1747238793905,0.6150212,103600.0,103590.0,0.38350015]
[1747238794107,1.02772329,103600.0,103590.0,0.19046035]
[1747238794308,1.02772329,103600.0,103590.0,0.0635306]
[1747238794704,1.02772329,103600.0,103590.0,0.0324306]
[1747238794896,1.02772329,103600.0,103590.0,0.2254704]
[1747238795101,1.02772329,103600.0,103590.0,0.0324306]
[1747238795507,1.02772329,103600.0,103590.0,0.2254704]
[1747238795702,1.02772329,103600.0,103590.0,0.0324306]
[1747238796215,1.02772329,103600.0,103590.0,0.2254704]
[1747238796907,1.02772329,103600.0,103590.0,0.0324306]
[1747238797711,1.02772329,103600.0,103590.0,0.0019306]
[1747238798112,1.24488329,103600.0,103590.0,0.0019306]
[1747238798807,1.23488329,103600.0,103590.0,0.0019306]
[1747238799009,1.52141129,103600.0,103590.0,0.0019306]
[1747238799429,0.1930584,103580.0,103570.0,0.01461546]
[1747238799720,0.1930771,103570.0,103560.0,0.0302]
[1747238799906,0.1930957,103560.0,103550.0,0.6176692]
[1747238800109,0.80325779,103560.0,103550.0,0.6478692]
[1747238800309,1.02085779,103560.0,103550.0,0.6478692]
[1747238800509,1.02085779,103560.0,103550.0,0.5995949]
[1747238800803,1.02085779,103560.0,103550.0,0.40374143]
[1747238801209,0.8357957,103560.0,103550.0,0.40374143]
[1747238801919,0.8357957,103560.0,103550.0,0.40674143]
[1747238803020,1.02085779,103560.0,103550.0,0.21362703]
[1747238803215,1.20591988,103560.0,103550.0,0.21362703]
[1747238803415,1.02085779,103560.0,103550.0,0.18222703]
[1747238803612,1.02085779,103560.0,103550.0,0.18522703]
[1747238803810,1.02085779,103560.0,103550.0,0.21722703]
[1747238804112,1.02085779,103560.0,103550.0,0.26324574]
[1747238804414,0.0324,103560.0,103550.0,0.62404574]
[1747238804613,0.1930957,103560.0,103550.0,0.90567487]
[1747238805210,0.9806494,103570.0,103560.0,0.1930957]
[1747238805511,0.9806494,103570.0,103560.0,0.2886957]
[1747238806717,0.9806494,103570.0,103560.0,0.2906957]
[1747238807419,0.2573926,103570.0,103560.0,0.2906957]
[1747238807613,0.4440526,103570.0,103560.0,0.38725341]
[1747238807814,0.2262926,103570.0,103560.0,0.38925341]
[1747238808112,0.4440926,103570.0,103560.0,0.38925341]
[1747238812321,0.62915469,103570.0,103560.0,0.38925341]
[1747238812721,0.8048926,103570.0,103560.0,0.38925341]
[1747238813220,0.98995469,103570.0,103560.0,0.38925341]
[1747238813426,0.98995469,103570.0,103560.0,0.0367]
[1747238813616,1.02155469,103570.0,103560.0,0.0367]
[1747238815623,1.23879469,103570.0,103560.0,0.0367]
[1747238817221,1.23879469,103570.0,103560.0,0.004]
[1747238817928,1.23879469,103570.0,103560.0,0.0359]
[1747238819217,1.23879469,103570.0,103560.0,0.0684]
[1747238819523,1.02099469,103570.0,103560.0,0.0684]
[1747238820928,0.8357326,103570.0,103560.0,0.2614957]
[1747238821327,0.8040926,103570.0,103560.0,0.2614957]
[1747238821532,0.8040926,103570.0,103560.0,0.2933957]
[1747238822130,0.62835469,103570.0,103560.0,0.2933957]
[1747238822332,1.02225469,103570.0,103560.0,0.2933957]
[1747238822929,0.66145469,103570.0,103560.0,0.2933957]
[1747238823128,0.80525469,103570.0,103560.0,0.2933957]
[1747238823427,1.02225469,103570.0,103560.0,0.2933957]
[1747238823626,0.8040526,103570.0,103560.0,0.2933957]
[1747238823825,0.1930926,103570.0,103560.0,0.2933957]
[1747238824026,0.1930926,103570.0,103560.0,0.5750155]
[1747238824233,0.1930926,103570.0,103560.0,0.38995341]
[1747238824426,0.2343926,103570.0,103560.0,0.38995341]
[1747238824936,0.5951926,103570.0,103560.0,0.38995341]
[1747238826534,0.2343926,103570.0,103560.0,0.38995341]
[1747238826835,0.5951926,103570.0,103560.0,0.38995341]
[1747238828028,0.2343926,103570.0,103560.0,0.38995341]
[1747238828236,0.5951926,103570.0,103560.0,0.38995341]
[1747238828823,0.6261926,103570.0,103560.0,0.38995341]
[1747238830434,0.5951926,103570.0,103560.0,0.38995341]
[1747238830637,0.4573244,103590.0,103570.0,0.1930771]
[1747238830836,0.4573244,103590.0,103580.0,0.44112049]
[1747238830837,0.2547398,103590.0,103580.0,0.44112049]
[1747238831032,0.2547398,103590.0,103580.0,0.2885584]
[1747238831231,0.2547398,103590.0,103580.0,0.38511611]
[1747238832234,0.1930398,103590.0,103580.0,0.74591611]
[1747238832431,0.27774537,103600.0,103590.0,0.1930398]
[1747238832626,0.27774537,103600.0,103590.0,0.2567398]
[1747238833535,0.85580746,103600.0,103590.0,0.2567398]
[1747238835443,0.85580746,103600.0,103590.0,0.0637]
[1747238835743,0.85580746,103600.0,103590.0,0.2567398]
[1747238836244,0.85580746,103600.0,103590.0,0.0637]
[1747238840141,0.67074537,103600.0,103590.0,0.2567398]
[1747238840347,0.85580746,103600.0,103590.0,0.2567398]
[1747238840733,0.63854537,103600.0,103590.0,0.44180189]
[1747238840943,0.46174537,103600.0,103590.0,0.44180189]
[1747238841143,0.49474537,103600.0,103590.0,0.2567398]
[1747238841951,0.46174537,103600.0,103590.0,0.2567398]
[1747238842744,0.49474537,103600.0,103590.0,0.2567398]
[1747238843048,0.85554537,103600.0,103590.0,0.2567398]
[1747238843243,1.04060746,103600.0,103590.0,0.2567398]
[1747238843447,1.07210746,103600.0,103590.0,0.2567398]
[1747238845162,1.07210746,103600.0,103590.0,0.0637]
[1747238845461,0.88704537,103600.0,103590.0,0.2567398]
[1747238845663,1.07210746,103600.0,103590.0,0.0637]
[1747238845968,1.07210746,103600.0,103590.0,0.2567398]
[1747238846156,1.07210746,103600.0,103590.0,0.0637]
[1747238849065,0.88704537,103600.0,103590.0,0.0637]
[1747238849265,1.07210746,103600.0,103590.0,0.2567398]
[1747238849965,0.88704537,103600.0,103590.0,0.2567398]
[1747238850556,0.88660537,103600.0,103590.0,0.2567398]
[1747238852462,0.88660537,103600.0,103590.0,0.0637]
[1747238852664,0.83037106,103600.0,103570.0,0.2071972]
[1747238852851,0.73892049,103580.0,103570.0,0.0443319]
[1747238853056,0.97560049,103580.0,103570.0,0.0770319]
[1747238853264,1.03950049,103580.0,103570.0,0.0770319]
[1747238854052,1.03950049,103580.0,103570.0,0.0790319]
[1747238854663,1.03950049,103580.0,103570.0,0.0488319]
[1747238854958,1.03962049,103580.0,103570.0,0.0488319]
[1747238855164,1.01962049,103580.0,103570.0,0.0488319]
[1747238855571,1.01962049,103580.0,103570.0,0.0508319]
[1747238855966,1.01962049,103580.0,103570.0,0.0488319]
[1747238856157,1.01962049,103580.0,103570.0,0.0817319]
[1747238856359,1.01962049,103580.0,103570.0,0.0797319]
[1747238857158,1.01962049,103580.0,103570.0,0.0468319]
[1747238858167,1.02923697,103580.0,103570.0,0.0468319]
[1747238858363,1.02923697,103580.0,103570.0,0.0327]
[1747238858566,1.05923697,103580.0,103570.0,0.0327]
[1747238858871,0.1930771,103570.0,103560.0,0.2564957]
[1747238859168,0.83313919,103570.0,103560.0,0.2564957]
[1747238859463,0.83313919,103570.0,103560.0,0.0634]
[1747238860060,0.83313919,103570.0,103560.0,0.0674]
[1747238861571,1.04981919,103570.0,103560.0,0.0345]
[1747238861769,1.04981919,103570.0,103560.0,0.004]
[1747238861971,1.04981919,103570.0,103560.0,0.0368]
[1747238864162,1.06981919,103570.0,103560.0,0.004]
[1747238864563,1.35836018,103570.0,103550.0,0.00193134]
[1747238864872,1.20583988,103560.0,103550.0,0.00193134]
[1747238865063,1.52583988,103560.0,103550.0,0.00193134]
[1747238865260,0.1931517,103530.0,103520.0,0.43619455]
[1747238865459,0.1931517,103530.0,103520.0,0.40191355]
[1747238865762,0.2252517,103530.0,103520.0,0.49847592]
[1747238865962,0.2252517,103530.0,103520.0,0.30531432]
[1747238866162,0.2252517,103530.0,103520.0,0.49848462]
[1747238866367,0.2252517,103530.0,103520.0,0.50648462]
[1747238866564,0.98827588,103530.0,103520.0,0.21555195]
[1747238866764,1.24665588,103530.0,103520.0,0.19045195]
[1747238867070,1.24159379,103530.0,103520.0,0.18745195]
[1747238867267,1.0565317,103530.0,103520.0,0.18745195]
[1747238867473,1.24159379,103530.0,103520.0,0.21805195]
[1747238867767,1.24159379,103530.0,103510.0,0.19720136]
[1747238867768,0.1931703,103520.0,103510.0,0.19720136]
[1747238867967,1.33393239,103520.0,103510.0,0.00193209]
[1747238868560,1.34865174,103520.0,103510.0,0.00193209]
[1747238869176,1.34865174,103520.0,103510.0,0.00393209]
[1747238869666,1.33393239,103520.0,103510.0,0.00593209]
[1747238871072,1.44024555,103520.0,103510.0,0.00593209]
[1747238871260,1.61024555,103520.0,103510.0,0.004]
[1747238871573,0.193189,103510.0,103500.0,0.1]
[1747238871769,1.64081109,103510.0,103500.0,0.1]
[1747238871967,0.1932077,103500.0,103490.0,0.06536623]
[1747238872170,1.50503188,103500.0,103490.0,0.06536623]
[1747238872578,1.31996979,103500.0,103490.0,0.06536623]
[1747238872774,1.50503188,103500.0,103490.0,0.06536623]
[1747238873070,1.31996979,103500.0,103490.0,0.06536623]
[1747238873275,0.8037677,103500.0,103490.0,0.25959253]
[1747238873473,0.77206979,103500.0,103490.0,0.25959253]
[1747238873672,1.20986979,103500.0,103490.0,0.25959253]
[1747238874073,1.28986979,103500.0,103490.0,0.25959253]
[1747238874275,1.0248077,103500.0,103490.0,0.25959253]
[1747238874472,0.9919277,103500.0,103490.0,0.25959253]
[1747238875579,1.0221277,103500.0,103490.0,0.25959253]
[1747238875781,1.41225188,103500.0,103490.0,0.06636623]
[1747238875980,1.71385188,103500.0,103490.0,0.06636623]
[1747238876471,1.51385188,103500.0,103490.0,0.06636623]
[1747238876672,1.32878979,103500.0,103490.0,0.06636623]
[1747238876877,1.32878979,103500.0,103490.0,0.25959253]
[1747238877280,0.5842077,103500.0,103490.0,0.25959253]
[1747238877481,0.8053277,103500.0,103490.0,0.25959253]
[1747238878080,0.7751277,103500.0,103490.0,0.25959253]
[1747238878278,0.8321016,103510.0,103500.0,0.1932077]
[1747238878279,0.4718959,103510.0,103500.0,0.1932077]
[1747238878476,1.0229159,103510.0,103500.0,0.2562077]
[1747238878779,0.9919159,103510.0,103500.0,0.2884077]
[1747238879284,0.5549959,103510.0,103500.0,0.2884077]
[1747238879485,0.9939559,103510.0,103500.0,0.2884077]
[1747238879681,0.5559959,103510.0,103500.0,0.2884077]
[1747238879881,0.7771159,103510.0,103500.0,0.2884077]
[1747238880081,0.7770359,103510.0,103500.0,0.38502139]
[1747238880484,0.5559959,103510.0,103500.0,0.38502139]
[1747238881183,0.74105799,103510.0,103500.0,0.19181369]
[1747238881373,0.77355799,103510.0,103500.0,0.19181369]
[1747238881577,0.77355799,103510.0,103500.0,0.0952]
[1747238881879,0.83415799,103510.0,103500.0,0.0952]
[1747238883283,0.85415799,103510.0,103500.0,0.0952]
[1747238883585,0.85415799,103510.0,103500.0,0.0625]
[1747238884176,1.12415799,103510.0,103500.0,0.0625]
[1747238884581,1.12415799,103510.0,103490.0,0.00096623]
[1747238884582,0.1932077,103500.0,103490.0,0.00096623]
[1747238884779,1.0565077,103500.0,103490.0,0.06406623]
[1747238884977,1.24156979,103500.0,103490.0,0.06406623]
[1747238885576,0.8039077,103500.0,103490.0,0.25729253]
[1747238885776,1.20988979,103500.0,103490.0,0.25729253]
[1747238885977,1.20988979,103500.0,103490.0,0.25829253]
[1747238886177,1.20988979,103500.0,103490.0,0.06506623]
[1747238886383,1.20988979,103500.0,103490.0,0.25829253]
[1747238887290,0.6309277,103500.0,103490.0,0.25829253]
[1747238887487,0.9917277,103500.0,103490.0,0.25829253]
[1747238887787,0.7746877,103500.0,103490.0,0.25829253]
[1747238887982,0.5539908,103510.0,103490.0,0.75583882]
[1747238888189,0.8712268,103510.0,103500.0,0.2889077]
[1747238888586,0.9026268,103510.0,103500.0,0.2889077]
[1747238888887,1.08768889,103510.0,103500.0,0.2889077]
[1747238889083,1.11988889,103510.0,103500.0,0.0957]
[1747238889279,1.33595098,103510.0,103500.0,0.0625]
[1747238889481,1.48088889,103510.0,103500.0,0.0314]
[1747238889685,0.1932077,103500.0,103490.0,0.03206623]
[1747238889880,1.31067188,103500.0,103490.0,0.06496623]
[1747238890280,1.12560979,103500.0,103490.0,0.06496623]
[1747238891280,1.05560979,103500.0,103490.0,0.06496623]
[1747238891589,1.05560979,103500.0,103490.0,0.25919253]
[1747238891888,0.80376979,103500.0,103490.0,0.25919253]
[1747238892093,1.24472979,103500.0,103490.0,0.25919253]
[1747238892277,0.1932077,103500.0,103490.0,0.25919253]
[1747238892483,0.6341277,103500.0,103490.0,0.25919253]
[1747238892684,0.3618,103510.0,103500.0,0.1932077]
[1747238892883,0.553989,103510.0,103500.0,0.47226979]
[1747238893079,0.553989,103510.0,103500.0,0.2872077]
[1747238893688,0.553989,103510.0,103500.0,0.38382139]
[1747238894387,0.3608,103510.0,103500.0,0.56888348]
[1747238894599,0.194189,103510.0,103500.0,0.56888348]
[1747238894984,0.195189,103510.0,103500.0,0.38382139]
[1747238897384,0.002,103510.0,103500.0,0.92968348]
[1747238897585,0.195189,103510.0,103500.0,0.92968348]
[1747238898893,0.195189,103510.0,103500.0,1.15032348]
[1747238899497,0.002,103510.0,103500.0,1.15032348]
[1747238899791,0.195189,103510.0,103500.0,1.15032348]
[1747238901192,0.002,103510.0,103500.0,1.15032348]
[1747238901895,0.195189,103510.0,103500.0,1.15032348]
[1747238902297,0.195189,103510.0,103500.0,0.96526139]
[1747238902487,0.227889,103510.0,103500.0,0.96526139]
[1747238902689,0.227889,103510.0,103500.0,1.16182139]
[1747238902885,0.195189,103510.0,103500.0,1.16182139]
[1747238905097,0.195189,103510.0,103500.0,1.34688348]
[1747238905985,0.002,103510.0,103500.0,1.34688348]
[1747238906189,0.195189,103510.0,103500.0,1.34688348]
[1747238906892,0.195189,103510.0,103500.0,1.56748348]
[1747238907090,0.226689,103510.0,103500.0,1.56748348]
[1747238907294,0.226689,103510.0,103500.0,1.38242139]
[1747238907698,0.225689,103510.0,103500.0,1.38242139]
[1747238908101,0.224689,103510.0,103500.0,1.38342139]
[1747238908488,0.225689,103510.0,103500.0,1.38342139]
[1747238908692,0.226689,103510.0,103500.0,0.96522139]
[1747238908889,0.195189,103510.0,103500.0,1.15028348]
[1747238909091,0.226589,103510.0,103500.0,1.15028348]
[1747238910693,0.195189,103510.0,103500.0,1.15028348]
[1747238911192,0.227389,103510.0,103500.0,1.15028348]
[1747238911401,0.227389,103510.0,103500.0,0.60442139]
[1747238911598,0.268189,103510.0,103500.0,0.57422139]
[1747238911797,0.660089,103510.0,103500.0,0.57422139]
[1747238913501,1.06467109,103510.0,103500.0,0.0315]
[1747238913897,1.06467109,103510.0,103500.0,0.2247077]
[1747238914090,0.628989,103510.0,103500.0,0.2247077]
[1747238914307,0.002,103510.0,103500.0,0.92988348]
[1747238914703,0.195189,103510.0,103500.0,1.56768348]
[1747238917806,0.002,103510.0,103500.0,1.56768348]
[1747238918007,0.195189,103510.0,103500.0,1.56768348]
[1747238919208,0.002,103510.0,103500.0,1.56768348]
[1747238919403,0.002,103520.0,103510.0,0.193189]
[1747238919609,0.1951703,103520.0,103510.0,0.80355109]
[1747238920111,0.2275703,103520.0,103510.0,0.90016478]
[1747238920509,0.2285703,103520.0,103510.0,0.90016478]
[1747238920810,0.2285703,103520.0,103510.0,1.31736478]
[1747238921112,0.5893703,103520.0,103510.0,0.77150269]
[1747238921311,0.6217703,103520.0,103510.0,0.77150269]
[1747238921809,0.2609703,103520.0,103510.0,0.77150269]
[1747238922209,0.80683239,103520.0,103510.0,0.610389]
[1747238922715,0.6217703,103520.0,103510.0,0.643589]
[1747238923712,0.6217703,103520.0,103510.0,0.226389]
[1747238926625,0.6217703,103520.0,103510.0,0.257789]
[1747238928022,0.6217703,103520.0,103510.0,0.0646]
[1747238928315,0.82683239,103520.0,103510.0,0.226389]
[1747238928715,0.6417703,103520.0,103510.0,0.226389]
[1747238929024,0.6417703,103520.0,103510.0,0.257389]
[1747238929524,0.6417703,103520.0,103510.0,0.0642]
[1747238930720,0.82683239,103520.0,103510.0,0.0332]
[1747238930918,1.04607239,103520.0,103510.0,0.0332]
[1747238931110,0.82683239,103520.0,103510.0,0.0332]
[1747238931310,1.26487239,103520.0,103510.0,0.0332]
[1747238933115,0.1932077,103500.0,103490.0,0.00096623]
[1747238933316,0.1932077,103500.0,103490.0,0.03196623]
[1747238933317,0.95758979,103500.0,103490.0,0.03196623]
[1747238933616,1.60845188,103500.0,103490.0,0.00096623]
[1747238933816,1.42338979,103500.0,103490.0,0.00096623]
[1747238934020,1.64262979,103500.0,103490.0,0.00096623]
[1747238934220,1.64262979,103500.0,103490.0,0.00296623]
[1747238934816,1.64262979,103500.0,103490.0,0.03396623]
[1747238935123,1.64262979,103500.0,103490.0,0.06746623]
[1747238936020,1.64262979,103500.0,103490.0,0.06446623]
[1747238937123,1.63262979,103500.0,103490.0,0.06446623]
[1747238937323,1.4475677,103500.0,103490.0,0.06446623]
[1747238937527,1.41402979,103500.0,103490.0,0.25769253]
[1747238938024,1.05322979,103500.0,103490.0,0.06446623]
[1747238938325,1.21522979,103500.0,103490.0,0.06446623]
[1747238939224,1.05322979,103500.0,103490.0,0.06446623]
[1747238939531,1.06300985,103500.0,103490.0,0.06446623]
[1747238940325,0.8681677,103500.0,103490.0,0.25769253]
[1747238940736,0.2576077,103500.0,103490.0,0.25769253]
[1747238941027,0.4763277,103500.0,103490.0,0.28979253]
[1747238942032,0.2576077,103500.0,103490.0,0.28979253]
[1747238943925,0.6184077,103500.0,103490.0,0.28979253]
[1747238944322,0.80346979,103500.0,103490.0,0.06446623]
[1747238944525,0.83616979,103500.0,103490.0,0.03396623]
[1747238944723,0.85616979,103500.0,103490.0,0.00296623]
[1747238945123,1.01816979,103500.0,103490.0,0.03456623]
[1747238945325,1.23740979,103500.0,103490.0,0.00296623]
[1747238945530,1.23740979,103500.0,103490.0,0.03456623]
[1747238946935,1.23740979,103500.0,103490.0,0.00296623]
[1747238947336,1.45580979,103500.0,103490.0,0.00296623]
[1747238947834,1.45580979,103500.0,103490.0,0.03486623]
[1747238948139,1.2707477,103500.0,103490.0,0.03486623]
[1747238948435,1.43580979,103500.0,103490.0,0.06616623]
[1747238949927,1.66087188,103500.0,103490.0,0.00296623]
[1747238950124,1.89087188,103500.0,103490.0,0.00296623]
[1747238950329,1.70580979,103500.0,103490.0,0.00296623]
[1747238951137,1.98749588,103500.0,103490.0,0.00296623]
[1747238951535,1.3023877,103500.0,103490.0,0.00296623]
[1747238951725,1.50660979,103500.0,103490.0,0.03496623]
[1747238951930,1.06816979,103500.0,103490.0,0.26029253]
[1747238952134,1.2508277,103500.0,103490.0,0.26029253]
[1747238952533,1.2508277,103500.0,103490.0,0.29109253]
[1747238953040,1.2508277,103500.0,103490.0,0.09786623]
[1747238953339,1.27388979,103500.0,103490.0,0.09786623]
[1747238955442,1.0888277,103500.0,103490.0,0.29109253]
[1747238955740,0.8048277,103500.0,103490.0,0.29109253]
[1747238957241,0.98988979,103500.0,103490.0,0.09786623]
[1747238957450,1.02288979,103500.0,103490.0,0.29109253]
[1747238957736,1.02288979,103500.0,103490.0,0.06706623]
[1747238957934,1.05288979,103500.0,103490.0,0.06706623]
[1747238959129,1.33488979,103500.0,103490.0,0.03496623]
[1747238959737,1.33488979,103500.0,103490.0,0.00296623]
[1747238960638,1.33488979,103500.0,103490.0,0.03546623]
[1747238961642,1.11576979,103500.0,103490.0,0.03546623]
[1747238961844,1.55272979,103500.0,103490.0,0.03546623]
[1747238964139,1.3672677,103500.0,103490.0,0.03546623]
[1747238964347,1.39032979,103500.0,103490.0,0.06676623]
[1747238964548,0.95376979,103500.0,103490.0,0.06676623]
[1747238964746,1.39036979,103500.0,103490.0,0.06676623]
[1747238965354,1.0222677,103500.0,103490.0,0.25999253]
[1747238965645,1.0222677,103500.0,103490.0,0.29079253]
[1747238967048,0.9905277,103500.0,103490.0,0.38741555]
[1747238967448,1.0237277,103500.0,103490.0,0.38741555]
[1747238972148,0.5540077,103500.0,103490.0,0.38741555]
[1747238972336,0.7714477,103500.0,103490.0,0.38741555]
[1747238972540,0.7714077,103500.0,103490.0,0.38741555]
[1747238972948,0.8021077,103500.0,103490.0,0.38741555]
[1747238976746,0.8021077,103500.0,103490.0,0.57247764]
[1747238976948,0.7714077,103500.0,103490.0,0.57247764]
[1747238977145,0.7714077,103500.0,103490.0,0.38741555]
[1747238977456,0.8028077,103500.0,103490.0,0.38741555]
[1747238979848,0.8028077,103500.0,103490.0,0.19418925]
[1747238979849,0.98786979,103500.0,103490.0,0.19418925]
[1747238980043,1.02036979,103500.0,103490.0,0.19418925]
[1747238980250,1.02036979,103500.0,103490.0,0.38741555]
[1747238980640,0.8353077,103500.0,103490.0,0.38741555]
[1747238981247,1.02036979,103500.0,103490.0,0.38741555]
[1747238982149,0.8353077,103500.0,103490.0,0.38741555]
[1747238985250,0.6179077,103500.0,103490.0,0.38741555]
[1747238985850,0.6179077,103500.0,103490.0,0.57247764]
[1747238985851,0.5540077,103500.0,103490.0,0.57247764]
[1747238986749,0.1932077,103500.0,103490.0,0.98967764]
[1747238987753,0.1932077,103500.0,103490.0,1.35047764]
[1747238988341,0.2249077,103500.0,103490.0,1.35047764]
[1747238990052,0.2249077,103500.0,103490.0,0.98967764]
[1747238990349,0.1951848,103520.0,103510.0,0.193189]
[1747238990650,0.002,103520.0,103510.0,0.95553109]
[1747238990846,0.1951703,103520.0,103510.0,1.05363109]
[1747238991151,0.1951703,103520.0,103510.0,1.15025411]
[1747238991451,0.1951703,103520.0,103510.0,0.96519202]
[1747238991651,0.1971703,103520.0,103510.0,0.96519202]
[1747238991953,0.2303703,103520.0,103510.0,0.97508374]
[1747238995648,0.2303703,103520.0,103510.0,1.39228374]
[1747238996356,0.0372,103520.0,103510.0,1.57734583]
[1747238996556,0.006,103520.0,103510.0,1.57734583]
[1747238996757,0.2301703,103520.0,103510.0,1.57734583]
[1747238997056,0.1991703,103520.0,103510.0,1.57734583]
[1747238997456,0.005,103520.0,103510.0,1.57734583]
[1747238997955,0.003,103520.0,103510.0,1.57734583]
[1747238999253,0.1961703,103520.0,103510.0,1.57734583]
[1747238999459,0.003,103520.0,103510.0,1.57734583]
[1747238999860,0.1961703,103520.0,103510.0,1.57734583]
[1747239000160,0.1961703,103520.0,103510.0,1.39228374]
[1747239000355,0.2287703,103520.0,103510.0,1.57734583]
[1747239000657,0.1961703,103520.0,103510.0,1.36086583]
[1747239000859,0.1961703,103520.0,103510.0,1.57730583]
[1747239001046,0.2287703,103520.0,103510.0,1.57730583]
[1747239002357,0.1961703,103520.0,103510.0,1.57730583]
[1747239002550,0.003,103520.0,103510.0,1.57730583]
[1747239002950,0.1775596,103540.0,103530.0,0.1931517]
[1747239003159,0.8116497,103540.0,103530.0,0.73901379]
[1747239003460,0.8116497,103540.0,103530.0,0.80231379]
[1747239003658,0.8116497,103540.0,103530.0,0.71383739]
[1747239003858,0.162,103540.0,103530.0,0.71383739]
[1747239004047,0.18506209,103590.0,103530.0,0.71383739]
[1747239004048,0.3608,103590.0,103530.0,1.86247387]
[1747239004359,0.2886791,103580.0,103570.0,0.73892049]
[1747239004553,0.3556,103580.0,103570.0,0.80182049]
[1747239004752,0.0631,103580.0,103570.0,0.80182049]
[1747239004951,0.2561584,103580.0,103570.0,0.89838286]
[1747239005152,0.2561584,103580.0,103570.0,1.09118286]
[1747239006162,0.2561584,103580.0,103570.0,0.92918286]
[1747239006461,0.2561584,103580.0,103570.0,0.56838286]
[1747239006656,0.2581584,103580.0,103570.0,0.56838286]
[1747239006860,0.2631584,103580.0,103570.0,0.56838286]
[1747239008053,0.2932584,103580.0,103570.0,0.58282868]
[1747239008260,0.2932584,103580.0,103570.0,0.94362868]
[1747239008461,0.70554095,103600.0,103590.0,0.1930398]
[1747239008655,0.70554095,103600.0,103590.0,0.37810189]
[1747239008656,1.04811745,103600.0,103590.0,0.37810189]
[1747239008856,1.04811745,103600.0,103590.0,0.41070189]
[1747239009365,1.01721954,103600.0,103590.0,0.0326]
[1747239009566,0.1930398,103590.0,103580.0,0.2895669]
[1747239009766,0.2560398,103590.0,103580.0,0.3547669]
[1747239010363,0.2560398,103590.0,103580.0,0.81209665]
[1747239011159,0.2630398,103590.0,103580.0,0.81209665]
[1747239011366,0.2329398,103590.0,103580.0,0.99715874]
[1747239011870,0.007,103590.0,103580.0,0.99715874]
[1747239012564,0.2000398,103590.0,103580.0,0.99715874]
[1747239012965,0.007,103590.0,103580.0,0.99715874]
[1747239013169,0.2000398,103590.0,103580.0,0.99715874]
[1747239013759,0.2000398,103590.0,103580.0,0.81209665]
[1747239013958,0.2311398,103590.0,103580.0,0.99715874]
[1747239016672,0.2311398,103590.0,103580.0,1.41435874]
[1747239017467,0.007,103590.0,103580.0,1.41435874]
[1747239017667,0.2000398,103590.0,103580.0,1.41435874]
[1747239018576,0.2322398,103590.0,103580.0,1.41435874]
[1747239018772,0.2322398,103590.0,103580.0,1.44509665]
[1747239019073,0.2322398,103590.0,103580.0,1.63015874]
[1747239020476,0.2322398,103590.0,103580.0,1.41435874]
[1747239020675,0.2322398,103590.0,103580.0,1.44509665]
[1747239020866,0.2647398,103590.0,103580.0,1.44509665]
[1747239022078,0.2322398,103590.0,103580.0,1.63015874]